[Event "Titled Tuesday Blitz January 03 Early 2023"]
[White "Bashirli, Nail"]
[Black "Arias, Juan Cruz"]
[WhiteFideId "13406809"]
[BlackFideId "118540"]
[WhiteElo "2326"]
[BlackElo "2320"]
[Result "1-0"]
[Round "07"]
[TimeControl "180+2"]
[Date "2023.01.03"]
[WhiteClock "0:00:06"]
[BlackClock "0:00:03"]

1. e4 {[%clk 0:02:47]}  c6 {[%clk 0:02:57]} 2. Nc3 {[%clk 0:02:41]}  d5 {[%clk 0:02:58]} 3. Nf3 {[%clk 0:02:37]}  dxe4 {[%clk 0:02:58]} 4. Nxe4 {[%clk 0:02:37]}  Nf6 {[%clk 0:02:58]} 5. Qe2 {[%clk 0:02:38]}  Nxe4 {[%clk 0:02:55]} 6. Qxe4 {[%clk 0:02:39]}  Nd7 {[%clk 0:02:56]} 7. Bc4 {[%clk 0:02:37]}  Nf6 {[%clk 0:02:56]} 8. Ne5 {[%clk 0:02:36]}  e6 {[%clk 0:02:56]} 9. Qf4 {[%clk 0:02:37]}  Bd6 {[%clk 0:02:50]} 10. d4 {[%clk 0:02:36]}  Qc7 {[%clk 0:02:42]} 11. O-O {[%clk 0:02:35]}  b5 {[%clk 0:02:38]} 12. Bd3 {[%clk 0:02:34]}  Bb7 {[%clk 0:02:35]} 13. Qh4 {[%clk 0:02:33]}  a6 {[%clk 0:02:13]} 14. a3 {[%clk 0:02:32]}  c5 {[%clk 0:02:11]} 15. Ng4 {[%clk 0:02:24]}  Nxg4 {[%clk 0:02:08]} 16. Qxg4 {[%clk 0:02:23]}  Bxh2+ {[%clk 0:02:02]} 17. Kh1 {[%clk 0:02:19]}  Bd6 {[%clk 0:02:00]} 18. dxc5 {[%clk 0:02:06]}  Qxc5 {[%clk 0:01:58]} 19. Be3 {[%clk 0:02:03]}  Qc7 {[%clk 0:01:58]} 20. a4 {[%clk 0:01:39]}  h5 {[%clk 0:01:49]} 21. Qxg7 {[%clk 0:01:22]}  O-O-O {[%clk 0:01:46]} 22. Qc3 {[%clk 0:01:18]}  b4 {[%clk 0:01:31]} 23. Qxc7+ {[%clk 0:01:16]}  Kxc7 {[%clk 0:01:32]} 24. f3 {[%clk 0:01:12]}  h4 {[%clk 0:01:30]} 25. Be4 {[%clk 0:01:09]}  h3 {[%clk 0:01:22]} 26. g4 {[%clk 0:01:05]}  Be5 {[%clk 0:01:16]} 27. c3 {[%clk 0:00:56]}  bxc3 {[%clk 0:01:11]} 28. bxc3 {[%clk 0:00:54]}  Bxe4 {[%clk 0:01:08]} 29. fxe4 {[%clk 0:00:55]}  f6 {[%clk 0:01:07]} 30. g5 {[%clk 0:00:37]}  fxg5 {[%clk 0:01:06]} 31. Bxg5 {[%clk 0:00:31]}  Rdg8 {[%clk 0:00:53]} 32. Be3 {[%clk 0:00:22]}  Rg3 {[%clk 0:00:51]} 33. Bg1 {[%clk 0:00:19]}  Rxc3 {[%clk 0:00:45]} 34. Rab1 {[%clk 0:00:20]}  h2 {[%clk 0:00:38]} 35. Bb6+ {[%clk 0:00:17]}  Kc6 {[%clk 0:00:38]} 36. Ba5 {[%clk 0:00:16]}  Rc4 {[%clk 0:00:21]} 37. Rb6+ {[%clk 0:00:15]}  Kc5 {[%clk 0:00:22]} 38. Rxe6 {[%clk 0:00:13]}  Bb8 {[%clk 0:00:18]} 39. Rb1 {[%clk 0:00:10]}  Rxa4 {[%clk 0:00:17]} 40. Bb6+ {[%clk 0:00:10]}  Kc4 {[%clk 0:00:16]} 41. Rc6+ {[%clk 0:00:07]}  Kd3 {[%clk 0:00:17]} 42. Bf2 {[%clk 0:00:03]}  Ke2 {[%clk 0:00:15]} 43. Bc5 {[%clk 0:00:02]}  Rxe4 {[%clk 0:00:14]} 44. Rf6 {[%clk 0:00:02]}  Kd2 {[%clk 0:00:14]} 45. Rf2+ {[%clk 0:00:03]}  Re2 {[%clk 0:00:14]} 46. Rb2+ {[%clk 0:00:03]}  Kc3 {[%clk 0:00:11]} 47. Rbxe2 {[%clk 0:00:04]}  Rd8 {[%clk 0:00:10]} 48. Rf1 {[%clk 0:00:04]}  a5 {[%clk 0:00:09]} 49. Bb6 {[%clk 0:00:04]}  Rd5 {[%clk 0:00:09]} 50. Ref2 {[%clk 0:00:04]}  a4 {[%clk 0:00:09]} 51. Rf3+ {[%clk 0:00:05]}  Kb4 {[%clk 0:00:09]} 52. Rb1+ {[%clk 0:00:05]}  Kc4 {[%clk 0:00:08]} 53. Bf2 {[%clk 0:00:06]}  Bd6 {[%clk 0:00:08]} 54. Rc1+ {[%clk 0:00:06]}  Kb5 {[%clk 0:00:07]} 55. Bg3 {[%clk 0:00:07]}  Bc5 {[%clk 0:00:04]} 56. Rb1+ {[%clk 0:00:06]}  Kc4 {[%clk 0:00:04]} 57. Rf4+ {[%clk 0:00:06]}  Bd4 {[%clk 0:00:01]} 58. Bf2 {[%clk 0:00:06]}  a3 {[%clk 0:00:02]} 59. Ra1 {[%clk 0:00:06]}  Kb3 {[%clk 0:00:02]} 60. Rxd4 {[%clk 0:00:05]}  Kb2 {[%clk 0:00:02]} 61. Rxd5 {[%clk 0:00:06]}  Kxa1 {[%clk 0:00:02]} 62. Bc5 {[%clk 0:00:06]}  Kb2 {[%clk 0:00:03]} 63. Bxa3+ {[%clk 0:00:06]} 1-0


[Site "https://www.chess.com"]

[Event "Titled Tuesday Blitz January 03 Early 2023"]
[White "Mihajlov, Sebastian"]
[Black "Arabidze, Meri"]
[WhiteFideId "1512110"]
[BlackFideId "13604040"]
[WhiteElo "2373"]
[BlackElo "2441"]
[Result "1-0"]
[Round "07"]
[TimeControl "180+2"]
[Date "2023.01.03"]
[WhiteClock "0:00:05"]
[BlackClock "0:00:01"]

1. e4 {[%clk 0:03:00]}  c5 {[%clk 0:02:57]} 2. Nf3 {[%clk 0:03:01]}  e6 {[%clk 0:02:58]} 3. d4 {[%clk 0:03:02]}  cxd4 {[%clk 0:02:59]} 4. Nxd4 {[%clk 0:03:03]}  Nc6 {[%clk 0:02:59]} 5. Nc3 {[%clk 0:03:04]}  a6 {[%clk 0:02:59]} 6. Be3 {[%clk 0:03:00]}  Nf6 {[%clk 0:02:59]} 7. Qf3 {[%clk 0:02:34]}  Bb4 {[%clk 0:02:58]} 8. Nxc6 {[%clk 0:02:26]}  dxc6 {[%clk 0:02:59]} 9. a3 {[%clk 0:02:15]}  Bxc3+ {[%clk 0:02:45]} 10. bxc3 {[%clk 0:02:16]}  e5 {[%clk 0:02:38]} 11. Bd3 {[%clk 0:02:14]}  O-O {[%clk 0:02:37]} 12. O-O {[%clk 0:02:14]}  b6 {[%clk 0:02:30]} 13. Qg3 {[%clk 0:02:03]}  Ng4 {[%clk 0:02:25]} 14. Bd2 {[%clk 0:02:00]}  Qe7 {[%clk 0:02:06]} 15. c4 {[%clk 0:01:47]}  Kh8 {[%clk 0:02:02]} 16. Rab1 {[%clk 0:01:41]}  b5 {[%clk 0:01:54]} 17. Bb4 {[%clk 0:01:32]}  c5 {[%clk 0:01:54]} 18. Bc3 {[%clk 0:01:33]}  f6 {[%clk 0:01:25]} 19. Kh1 {[%clk 0:01:14]}  Be6 {[%clk 0:01:20]} 20. cxb5 {[%clk 0:00:33]}  axb5 {[%clk 0:01:21]} 21. Rxb5 {[%clk 0:00:34]}  Rxa3 {[%clk 0:01:19]} 22. Bb2 {[%clk 0:00:35]}  Ra2 {[%clk 0:01:15]} 23. h3 {[%clk 0:00:32]}  Nh6 {[%clk 0:01:14]} 24. f4 {[%clk 0:00:29]}  exf4 {[%clk 0:01:11]} 25. Qxf4 {[%clk 0:00:28]}  c4 {[%clk 0:00:50]} 26. Be2 {[%clk 0:00:28]}  Nf7 {[%clk 0:00:40]} 27. Rb6 {[%clk 0:00:20]}  h6 {[%clk 0:00:34]} 28. Ra1 {[%clk 0:00:16]}  Rxa1+ {[%clk 0:00:33]} 29. Bxa1 {[%clk 0:00:17]}  Ra8 {[%clk 0:00:32]} 30. Bc3 {[%clk 0:00:17]}  Ng5 {[%clk 0:00:22]} 31. Rc6 {[%clk 0:00:13]}  Qd7 {[%clk 0:00:16]} 32. Rd6 {[%clk 0:00:11]}  Qc7 {[%clk 0:00:16]} 33. e5 {[%clk 0:00:09]}  f5 {[%clk 0:00:10]} 34. h4 {[%clk 0:00:08]}  Ne4 {[%clk 0:00:11]} 35. Rxe6 {[%clk 0:00:07]}  Nxc3 {[%clk 0:00:10]} 36. Bf3 {[%clk 0:00:08]}  Ra1+ {[%clk 0:00:09]} 37. Kh2 {[%clk 0:00:08]}  Qf7 {[%clk 0:00:09]} 38. Qxc4 {[%clk 0:00:07]}  Ne4 {[%clk 0:00:05]} 39. Qc8+ {[%clk 0:00:05]}  Kh7 {[%clk 0:00:05]} 40. Re8 {[%clk 0:00:06]}  Kg6 {[%clk 0:00:02]} 41. h5+ {[%clk 0:00:06]}  Kg5 {[%clk 0:00:02]} 42. Qd8+ {[%clk 0:00:06]}  Kf4 {[%clk 0:00:03]} 43. Qh4+ {[%clk 0:00:05]}  Ke3 {[%clk 0:00:03]} 44. Rd8 {[%clk 0:00:04]}  Nc5 {[%clk 0:00:03]} 45. Qg3 {[%clk 0:00:04]}  f4 {[%clk 0:00:02]} 46. Qh3 {[%clk 0:00:04]}  Qc4 {[%clk 0:00:02]} 47. Bg4+ {[%clk 0:00:04]}  f3 {[%clk 0:00:01]} 48. Qxf3# {[%clk 0:00:05]} 1-0


[Site "https://www.chess.com"]

[Event "Titled Tuesday Blitz January 03 Early 2023"]
[White "Skvortsov, Andrei"]
[Black "Aggelis, Nikolaos"]
[WhiteFideId "24108600"]
[BlackFideId "4213220"]
[WhiteElo "2313"]
[BlackElo "2270"]
[Result "1/2-1/2"]
[Round "07"]
[TimeControl "180+2"]
[Date "2023.01.03"]
[WhiteClock "0:00:10"]
[BlackClock "0:00:06"]

1. d4 {[%clk 0:02:59]}  Nf6 {[%clk 0:02:58]} 2. Nf3 {[%clk 0:02:59]}  g6 {[%clk 0:02:58]} 3. Nbd2 {[%clk 0:02:58]}  d5 {[%clk 0:02:57]} 4. c4 {[%clk 0:02:58]}  Bg7 {[%clk 0:02:54]} 5. e3 {[%clk 0:02:58]}  O-O {[%clk 0:02:53]} 6. b4 {[%clk 0:02:58]}  b6 {[%clk 0:02:51]} 7. c5 {[%clk 0:02:56]}  a5 {[%clk 0:02:50]} 8. cxb6 {[%clk 0:02:55]}  axb4 {[%clk 0:02:46]} 9. Qb3 {[%clk 0:02:45]}  c5 {[%clk 0:02:41]} 10. dxc5 {[%clk 0:02:40]}  Ne4 {[%clk 0:02:41]} 11. Nd4 {[%clk 0:02:09]}  Nxc5 {[%clk 0:02:27]} 12. Qxb4 {[%clk 0:02:07]}  Nbd7 {[%clk 0:02:26]} 13. Nc6 {[%clk 0:01:38]}  Qxb6 {[%clk 0:02:24]} 14. Nxe7+ {[%clk 0:01:36]}  Kh8 {[%clk 0:02:22]} 15. Qxb6 {[%clk 0:01:36]}  Nxb6 {[%clk 0:02:21]} 16. Rb1 {[%clk 0:01:37]}  Nba4 {[%clk 0:02:11]} 17. Nxd5 {[%clk 0:01:30]}  Be6 {[%clk 0:02:08]} 18. Nc7 {[%clk 0:01:25]}  Bxa2 {[%clk 0:01:54]} 19. Nxa8 {[%clk 0:01:21]}  Bxb1 {[%clk 0:01:54]} 20. Nxb1 {[%clk 0:01:20]}  Rxa8 {[%clk 0:01:54]} 21. Bc4 {[%clk 0:01:15]}  Nc3 {[%clk 0:01:53]} 22. Nxc3 {[%clk 0:01:11]}  Bxc3+ {[%clk 0:01:54]} 23. Ke2 {[%clk 0:01:06]}  Kg7 {[%clk 0:01:52]} 24. Rd1 {[%clk 0:01:05]}  Ra1 {[%clk 0:01:52]} 25. Bd2 {[%clk 0:00:58]}  Bf6 {[%clk 0:01:49]} 26. Rxa1 {[%clk 0:00:57]}  Bxa1 {[%clk 0:01:50]} 27. g4 {[%clk 0:00:51]}  g5 {[%clk 0:01:36]} 28. Bb4 {[%clk 0:00:47]}  Ne6 {[%clk 0:01:32]} 29. Be7 {[%clk 0:00:42]}  h6 {[%clk 0:01:27]} 30. h3 {[%clk 0:00:34]}  Be5 {[%clk 0:01:23]} 31. Kd3 {[%clk 0:00:32]}  Bh2 {[%clk 0:01:21]} 32. Ke4 {[%clk 0:00:29]}  Nf8 {[%clk 0:01:21]} 33. Bc5 {[%clk 0:00:24]}  Ng6 {[%clk 0:01:20]} 34. Bd4+ {[%clk 0:00:21]}  f6 {[%clk 0:01:20]} 35. Kf3 {[%clk 0:00:17]}  Be5 {[%clk 0:01:19]} 36. Bc5 {[%clk 0:00:15]}  Nh4+ {[%clk 0:01:18]} 37. Ke2 {[%clk 0:00:15]}  Ng6 {[%clk 0:01:18]} 38. Bb5 {[%clk 0:00:15]}  Bh2 {[%clk 0:01:17]} 39. Bc6 {[%clk 0:00:15]}  Ne5 {[%clk 0:01:15]} 40. Bh1 {[%clk 0:00:15]}  Ng6 {[%clk 0:01:15]} 41. Bg2 {[%clk 0:00:15]}  Nh4 {[%clk 0:01:15]} 42. Be4 {[%clk 0:00:15]}  Be5 {[%clk 0:01:11]} 43. Bd4 {[%clk 0:00:14]}  Bh2 {[%clk 0:01:09]} 44. Kd3 {[%clk 0:00:14]}  Bg1 {[%clk 0:01:07]} 45. Ke2 {[%clk 0:00:12]}  Bh2 {[%clk 0:01:07]} 46. Bh1 {[%clk 0:00:12]}  Ng6 {[%clk 0:01:05]} 47. Kf1 {[%clk 0:00:10]}  Bd6 {[%clk 0:01:00]} 48. Bb6 {[%clk 0:00:10]}  Be5 {[%clk 0:00:59]} 49. Be4 {[%clk 0:00:10]}  Nh4 {[%clk 0:00:58]} 50. Ke2 {[%clk 0:00:11]}  Bh2 {[%clk 0:00:58]} 51. Bb7 {[%clk 0:00:09]}  Kf7 {[%clk 0:00:55]} 52. Bd5+ {[%clk 0:00:09]}  Kg7 {[%clk 0:00:55]} 53. Bd4 {[%clk 0:00:09]}  Ng6 {[%clk 0:00:55]} 54. f3 {[%clk 0:00:09]}  Bd6 {[%clk 0:00:50]} 55. Be4 {[%clk 0:00:09]}  Nh4 {[%clk 0:00:49]} 56. Kd3 {[%clk 0:00:07]}  Bg3 {[%clk 0:00:48]} 57. Kc4 {[%clk 0:00:07]}  Bf2 {[%clk 0:00:47]} 58. Kd5 {[%clk 0:00:07]}  Ng2 {[%clk 0:00:48]} 59. Ke6 {[%clk 0:00:07]}  Bxe3 {[%clk 0:00:44]} 60. Bxf6+ {[%clk 0:00:07]}  Kg8 {[%clk 0:00:44]} 61. Kf5 {[%clk 0:00:05]}  Nf4 {[%clk 0:00:43]} 62. Be5 {[%clk 0:00:05]}  Nxh3 {[%clk 0:00:42]} 63. Kg6 {[%clk 0:00:05]}  Kf8 {[%clk 0:00:28]} 64. Bg7+ {[%clk 0:00:05]}  Ke7 {[%clk 0:00:28]} 65. Bxh6 {[%clk 0:00:06]}  Ke6 {[%clk 0:00:28]} 66. Bf5+ {[%clk 0:00:05]}  Ke5 {[%clk 0:00:28]} 67. Be4 {[%clk 0:00:06]}  Kf4 {[%clk 0:00:27]} 68. Kf6 {[%clk 0:00:06]}  Kg3 {[%clk 0:00:26]} 69. Kf5 {[%clk 0:00:06]}  Bf4 {[%clk 0:00:26]} 70. Bg7 {[%clk 0:00:06]}  Ng1 {[%clk 0:00:23]} 71. Bf6 {[%clk 0:00:05]}  Nh3 {[%clk 0:00:19]} 72. Bd4 {[%clk 0:00:05]}  Bc1 {[%clk 0:00:17]} 73. Be5+ {[%clk 0:00:05]}  Kh4 {[%clk 0:00:13]} 74. Bh2 {[%clk 0:00:05]}  Bf4 {[%clk 0:00:12]} 75. Bg1 {[%clk 0:00:04]}  Nxg1 {[%clk 0:00:12]} 76. Bd5 {[%clk 0:00:05]}  Kg3 {[%clk 0:00:11]} 77. Ke4 {[%clk 0:00:05]}  Nxf3 {[%clk 0:00:11]} 78. Be6 {[%clk 0:00:05]}  Nh2 {[%clk 0:00:11]} 79. Kd3 {[%clk 0:00:05]}  Nxg4 {[%clk 0:00:12]} 80. Ke2 {[%clk 0:00:05]}  Nh2 {[%clk 0:00:12]} 81. Kd3 {[%clk 0:00:05]}  g4 {[%clk 0:00:12]} 82. Bxg4 {[%clk 0:00:05]}  Kxg4 {[%clk 0:00:12]} 83. Ke4 {[%clk 0:00:06]}  Nf3 {[%clk 0:00:13]} 84. Kd5 {[%clk 0:00:06]}  Ng5 {[%clk 0:00:14]} 85. Kc5 {[%clk 0:00:07]}  Kf5 {[%clk 0:00:15]} 86. Kd5 {[%clk 0:00:08]}  Be5 {[%clk 0:00:15]} 87. Kc5 {[%clk 0:00:09]}  Ke4 {[%clk 0:00:15]} 88. Kc6 {[%clk 0:00:09]}  Nf3 {[%clk 0:00:16]} 89. Kb6 {[%clk 0:00:10]}  Kd5 {[%clk 0:00:16]} 90. Kb5 {[%clk 0:00:09]}  Nd4+ {[%clk 0:00:16]} 91. Kb6 {[%clk 0:00:09]}  Bd6 {[%clk 0:00:17]} 92. Kb7 {[%clk 0:00:10]}  Ne6 {[%clk 0:00:17]} 93. Kb6 {[%clk 0:00:11]}  Nc5 {[%clk 0:00:16]} 94. Ka7 {[%clk 0:00:11]}  Be5 {[%clk 0:00:17]} 95. Kb6 {[%clk 0:00:11]}  Bd4 {[%clk 0:00:17]} 96. Kc7 {[%clk 0:00:11]}  Ne6+ {[%clk 0:00:18]} 97. Kb7 {[%clk 0:00:11]}  Bc5 {[%clk 0:00:17]} 98. Kb8 {[%clk 0:00:10]}  Kd6 {[%clk 0:00:17]} 99. Kb7 {[%clk 0:00:11]}  Nc7 {[%clk 0:00:17]} 100. Kc8 {[%clk 0:00:05]}  Kc6 {[%clk 0:00:17]} 101. Kb8 {[%clk 0:00:06]}  Bd4 {[%clk 0:00:17]} 102. Kc8 {[%clk 0:00:07]}  Ba7 {[%clk 0:00:17]} 103. Kd8 {[%clk 0:00:07]}  Nd5 {[%clk 0:00:18]} 104. Kc8 {[%clk 0:00:08]}  Nf6 {[%clk 0:00:13]} 105. Kd8 {[%clk 0:00:08]}  Kd6 {[%clk 0:00:13]} 106. Kc8 {[%clk 0:00:08]}  Nd7 {[%clk 0:00:13]} 107. Kb7 {[%clk 0:00:08]}  Bd4 {[%clk 0:00:12]} 108. Ka8 {[%clk 0:00:09]}  Nf6 {[%clk 0:00:13]} 109. Kb7 {[%clk 0:00:09]}  Nd5 {[%clk 0:00:14]} 110. Kb8 {[%clk 0:00:09]}  Nc7 {[%clk 0:00:14]} 111. Kb7 {[%clk 0:00:10]}  Kd7 {[%clk 0:00:14]} 112. Kb8 {[%clk 0:00:10]}  Kc6 {[%clk 0:00:15]} 113. Kc8 {[%clk 0:00:11]}  Ba7 {[%clk 0:00:15]} 114. Kd8 {[%clk 0:00:11]}  Nd5 {[%clk 0:00:16]} 115. Kc8 {[%clk 0:00:12]}  Nf6 {[%clk 0:00:07]} 116. Kd8 {[%clk 0:00:12]}  Bb6+ {[%clk 0:00:06]} 117. Kc8 {[%clk 0:00:10]}  Nd7 {[%clk 0:00:06]} 1/2-1/2


[Site "https://www.chess.com"]

[Event "Titled Tuesday Blitz January 03 Early 2023"]
[White "Mendez Fortes, Eduardo Jesus"]
[Black "Salimova, Nurgyul"]
[WhiteFideId "3502376"]
[BlackFideId "2915138"]
[WhiteElo "2250"]
[BlackElo "2391"]
[Result "0-1"]
[Round "07"]
[TimeControl "180+2"]
[Date "2023.01.03"]
[WhiteClock "0:01:28"]
[BlackClock "0:01:19"]

1. e4 {[%clk 0:03:00]}  Nf6 {[%clk 0:02:58]} 2. e5 {[%clk 0:03:01]}  Nd5 {[%clk 0:02:58]} 3. d4 {[%clk 0:03:01]}  d6 {[%clk 0:02:53]} 4. Nf3 {[%clk 0:03:02]}  Bg4 {[%clk 0:02:50]} 5. Be2 {[%clk 0:03:01]}  e6 {[%clk 0:02:48]} 6. c4 {[%clk 0:02:57]}  Nb6 {[%clk 0:02:47]} 7. h3 {[%clk 0:02:55]}  Bh5 {[%clk 0:02:45]} 8. exd6 {[%clk 0:02:55]}  cxd6 {[%clk 0:02:44]} 9. Nc3 {[%clk 0:02:55]}  Be7 {[%clk 0:02:43]} 10. g4 {[%clk 0:02:55]}  Bg6 {[%clk 0:02:42]} 11. h4 {[%clk 0:02:48]}  h5 {[%clk 0:02:35]} 12. g5 {[%clk 0:02:44]}  Nc6 {[%clk 0:02:32]} 13. Be3 {[%clk 0:02:44]}  d5 {[%clk 0:02:18]} 14. cxd5 {[%clk 0:02:43]}  Nxd5 {[%clk 0:02:16]} 15. Qb3 {[%clk 0:02:34]}  O-O {[%clk 0:02:12]} 16. Nxd5 {[%clk 0:02:31]}  exd5 {[%clk 0:02:10]} 17. a3 {[%clk 0:02:26]}  Na5 {[%clk 0:02:02]} 18. Qa4 {[%clk 0:02:13]}  Rc8 {[%clk 0:01:53]} 19. b4 {[%clk 0:01:43]}  Nc4 {[%clk 0:01:50]} 20. Qxa7 {[%clk 0:01:32]}  Qc7 {[%clk 0:01:33]} 21. Qa4 {[%clk 0:01:28]}  Nxe3 {[%clk 0:01:31]} 22. fxe3 {[%clk 0:01:28]}  Qg3+ {[%clk 0:01:26]} 23. Kd2 {[%clk 0:01:28]}  Rc2+ {[%clk 0:01:24]} 24. Kd1 {[%clk 0:01:28]}  Rxe2 {[%clk 0:01:20]} 25. Kxe2 {[%clk 0:01:28]}  Qg2+ {[%clk 0:01:20]} 26. Ke1 {[%clk 0:01:28]}  Qxh1+ {[%clk 0:01:19]} 0-1


[Site "https://www.chess.com"]

[Event "Titled Tuesday Blitz January 03 Early 2023"]
[White "Kanakaris, Georgios"]
[Black "Patrascu, Catalin-Lucian"]
[WhiteFideId "4209460"]
[BlackFideId "1229052"]
[WhiteElo "2391"]
[BlackElo "2279"]
[Result "1-0"]
[Round "07"]
[TimeControl "180+2"]
[Date "2023.01.03"]
[WhiteClock "0:00:01"]
[BlackClock "0:00:02"]

1. Nf3 {[%clk 0:03:00]}  d5 {[%clk 0:02:59]} 2. d4 {[%clk 0:02:58]}  Nf6 {[%clk 0:02:58]} 3. c4 {[%clk 0:02:58]}  e6 {[%clk 0:02:57]} 4. e3 {[%clk 0:02:58]}  a6 {[%clk 0:02:55]} 5. b3 {[%clk 0:02:57]}  c5 {[%clk 0:02:53]} 6. Nbd2 {[%clk 0:02:55]}  Nbd7 {[%clk 0:02:51]} 7. Bd3 {[%clk 0:02:55]}  Be7 {[%clk 0:02:47]} 8. O-O {[%clk 0:02:55]}  O-O {[%clk 0:02:47]} 9. Bb2 {[%clk 0:02:55]}  cxd4 {[%clk 0:02:45]} 10. exd4 {[%clk 0:02:54]}  b6 {[%clk 0:02:44]} 11. Qe2 {[%clk 0:02:54]}  Bb7 {[%clk 0:02:45]} 12. Rac1 {[%clk 0:02:54]}  Re8 {[%clk 0:02:38]} 13. Bb1 {[%clk 0:02:54]}  Qb8 {[%clk 0:02:31]} 14. Ne5 {[%clk 0:02:43]}  dxc4 {[%clk 0:02:23]} 15. bxc4 {[%clk 0:02:40]}  Nxe5 {[%clk 0:02:18]} 16. dxe5 {[%clk 0:02:41]}  Nd7 {[%clk 0:02:18]} 17. Rc3 {[%clk 0:02:37]}  Qxe5 {[%clk 0:02:15]} 18. Bxh7+ {[%clk 0:02:17]}  Kf8 {[%clk 0:02:07]} 19. Be4 {[%clk 0:01:51]}  Nf6 {[%clk 0:01:35]} 20. Rb3 {[%clk 0:01:23]}  Qc7 {[%clk 0:01:35]} 21. Rh3 {[%clk 0:01:16]}  Bd6 {[%clk 0:01:20]} 22. Qf3 {[%clk 0:00:41]}  Nxe4 {[%clk 0:01:10]} 23. Nxe4 {[%clk 0:00:41]}  Be5 {[%clk 0:00:38]} 24. Ba3+ {[%clk 0:00:35]}  Kg8 {[%clk 0:00:34]} 25. Nf6+ {[%clk 0:00:10]}  Bxf6 {[%clk 0:00:16]} 26. Qh5 {[%clk 0:00:10]}  Bh4 {[%clk 0:00:11]} 27. Qxh4 {[%clk 0:00:07]}  f6 {[%clk 0:00:12]} 28. Qh7+ {[%clk 0:00:05]}  Kf7 {[%clk 0:00:12]} 29. Rg3 {[%clk 0:00:05]}  Rg8 {[%clk 0:00:11]} 30. Qh5+ {[%clk 0:00:04]}  g6 {[%clk 0:00:09]} 31. Qh6 {[%clk 0:00:01]}  Rg7 {[%clk 0:00:08]} 32. Re1 {[%clk 0:00:02]}  Rd8 {[%clk 0:00:07]} 33. Qe3 {[%clk 0:00:03]}  Rh7 {[%clk 0:00:04]} 34. h3 {[%clk 0:00:03]}  Qc6 {[%clk 0:00:03]} 35. Qe2 {[%clk 0:00:03]}  Rh4 {[%clk 0:00:03]} 36. f3 {[%clk 0:00:03]}  Rxc4 {[%clk 0:00:03]} 37. Rg4 {[%clk 0:00:03]}  Rc2 {[%clk 0:00:03]} 38. Qe3 {[%clk 0:00:03]}  Rdd2 {[%clk 0:00:03]} 39. Rf1 {[%clk 0:00:01]}  g5 {[%clk 0:00:03]} 40. Qe4 {[%clk 0:00:01]}  Qxe4 {[%clk 0:00:02]} 41. fxe4 {[%clk 0:00:01]}  Bxe4 {[%clk 0:00:02]} 42. Rxg5 {[%clk 0:00:01]} 1-0


[Site "https://www.chess.com"]

[Event "Titled Tuesday Blitz January 03 Early 2023"]
[White "TheKnightOfBosnia"]
[Black "Wagner, Dennis"]
[BlackFideId "24650684"]
[WhiteElo "2481"]
[BlackElo "2595"]
[Result "0-1"]
[Round "07"]
[TimeControl "180+2"]
[Date "2023.01.03"]
[WhiteClock "0:00:58"]
[BlackClock "0:00:31"]

1. e4 {[%clk 0:03:00]}  e5 {[%clk 0:02:59]} 2. Nf3 {[%clk 0:03:00]}  Nc6 {[%clk 0:02:59]} 3. Bb5 {[%clk 0:03:01]}  a6 {[%clk 0:03:00]} 4. Ba4 {[%clk 0:03:01]}  Nf6 {[%clk 0:03:00]} 5. d3 {[%clk 0:03:01]}  Bc5 {[%clk 0:03:00]} 6. O-O {[%clk 0:03:01]}  d6 {[%clk 0:02:55]} 7. h3 {[%clk 0:03:01]}  O-O {[%clk 0:02:55]} 8. a3 {[%clk 0:03:01]}  h6 {[%clk 0:02:49]} 9. Nc3 {[%clk 0:03:01]}  b5 {[%clk 0:02:18]} 10. Bb3 {[%clk 0:03:01]}  Rb8 {[%clk 0:02:12]} 11. Bd2 {[%clk 0:02:52]}  Bb6 {[%clk 0:02:05]} 12. Nd5 {[%clk 0:02:51]}  Nxd5 {[%clk 0:02:04]} 13. Bxd5 {[%clk 0:02:46]}  Ne7 {[%clk 0:02:04]} 14. Ba2 {[%clk 0:02:46]}  Ng6 {[%clk 0:02:02]} 15. c4 {[%clk 0:02:40]}  Qf6 {[%clk 0:02:00]} 16. a4 {[%clk 0:02:29]}  Nf4 {[%clk 0:01:42]} 17. Bxf4 {[%clk 0:02:26]}  Qxf4 {[%clk 0:01:43]} 18. cxb5 {[%clk 0:02:25]}  axb5 {[%clk 0:01:43]} 19. a5 {[%clk 0:02:24]}  Bxa5 {[%clk 0:01:30]} 20. Bxf7+ {[%clk 0:02:09]}  Rxf7 {[%clk 0:01:31]} 21. Rxa5 {[%clk 0:02:09]}  Bxh3 {[%clk 0:01:32]} 22. gxh3 {[%clk 0:01:58]}  Qxf3 {[%clk 0:01:31]} 23. Qxf3 {[%clk 0:01:59]}  Rxf3 {[%clk 0:01:31]} 24. Rc1 {[%clk 0:02:00]}  c5 {[%clk 0:01:29]} 25. Rc3 {[%clk 0:01:47]}  b4 {[%clk 0:01:21]} 26. Rb3 {[%clk 0:01:44]}  Rxh3 {[%clk 0:01:06]} 27. Ra6 {[%clk 0:01:37]}  Rd8 {[%clk 0:00:54]} 28. Kg2 {[%clk 0:01:37]}  Rh5 {[%clk 0:00:54]} 29. f4 {[%clk 0:01:34]}  exf4 {[%clk 0:00:45]} 30. d4 {[%clk 0:01:34]}  Rg5+ {[%clk 0:00:43]} 31. Kf2 {[%clk 0:01:33]}  Rg3 {[%clk 0:00:36]} 32. Rxg3 {[%clk 0:01:30]}  fxg3+ {[%clk 0:00:37]} 33. Kxg3 {[%clk 0:01:31]}  cxd4 {[%clk 0:00:38]} 34. Rb6 {[%clk 0:01:28]}  d5 {[%clk 0:00:35]} 35. e5 {[%clk 0:01:22]}  d3 {[%clk 0:00:35]} 36. Rxb4 {[%clk 0:01:22]}  d4 {[%clk 0:00:35]} 37. Rb3 {[%clk 0:01:18]}  Kf7 {[%clk 0:00:36]} 38. Rxd3 {[%clk 0:01:18]}  Ke6 {[%clk 0:00:36]} 39. Kf4 {[%clk 0:01:18]}  Kd5 {[%clk 0:00:35]} 40. e6 {[%clk 0:01:06]}  Rf8+ {[%clk 0:00:33]} 41. Kg4 {[%clk 0:01:04]}  Re8 {[%clk 0:00:31]} 42. Kf5 {[%clk 0:01:03]}  Rxe6 {[%clk 0:00:30]} 43. b4 {[%clk 0:00:57]}  g6+ {[%clk 0:00:30]} 44. Kf4 {[%clk 0:00:57]}  Re4+ {[%clk 0:00:30]} 45. Kf3 {[%clk 0:00:57]}  Re3+ {[%clk 0:00:29]} 46. Rxe3 {[%clk 0:00:57]}  dxe3 {[%clk 0:00:30]} 47. Kxe3 {[%clk 0:00:58]}  Kc4 {[%clk 0:00:31]} 0-1


[Site "https://www.chess.com"]

[Event "Titled Tuesday Blitz January 03 Early 2023"]
[White "Baskakov, Egor"]
[Black "Mohammed, Zozek Salah Mohammed"]
[WhiteFideId "24197866"]
[BlackFideId "4803361"]
[WhiteElo "2215"]
[BlackElo "2210"]
[Result "1-0"]
[Round "07"]
[TimeControl "180+2"]
[Date "2023.01.03"]
[WhiteClock "0:01:40"]
[BlackClock "0:01:08"]

1. e4 {[%clk 0:03:00]}  e6 {[%clk 0:02:54]} 2. Nc3 {[%clk 0:03:00]}  d5 {[%clk 0:02:53]} 3. g3 {[%clk 0:03:00]}  Nf6 {[%clk 0:02:51]} 4. Bg2 {[%clk 0:03:00]}  dxe4 {[%clk 0:02:51]} 5. Nxe4 {[%clk 0:03:01]}  c6 {[%clk 0:02:48]} 6. Ne2 {[%clk 0:02:59]}  Be7 {[%clk 0:02:48]} 7. d4 {[%clk 0:02:58]}  O-O {[%clk 0:02:48]} 8. O-O {[%clk 0:02:58]}  Nbd7 {[%clk 0:02:48]} 9. c4 {[%clk 0:02:54]}  Nxe4 {[%clk 0:02:48]} 10. Bxe4 {[%clk 0:02:55]}  Nf6 {[%clk 0:02:48]} 11. Bg2 {[%clk 0:02:55]}  Qc7 {[%clk 0:02:41]} 12. Qc2 {[%clk 0:02:53]}  b6 {[%clk 0:02:38]} 13. Bf4 {[%clk 0:02:53]}  Bd6 {[%clk 0:02:36]} 14. Rfe1 {[%clk 0:02:49]}  Bb7 {[%clk 0:02:34]} 15. Rad1 {[%clk 0:02:49]}  Rac8 {[%clk 0:02:24]} 16. Qa4 {[%clk 0:02:42]}  Rfd8 {[%clk 0:02:07]} 17. b3 {[%clk 0:02:28]}  h6 {[%clk 0:02:03]} 18. h3 {[%clk 0:02:18]}  c5 {[%clk 0:01:48]} 19. Bxd6 {[%clk 0:02:13]}  Rxd6 {[%clk 0:01:45]} 20. Qxa7 {[%clk 0:02:12]}  Bxg2 {[%clk 0:01:40]} 21. Qxc7 {[%clk 0:02:11]}  Rxc7 {[%clk 0:01:40]} 22. Kxg2 {[%clk 0:02:11]}  Ra7 {[%clk 0:01:34]} 23. dxc5 {[%clk 0:02:10]}  Rxd1 {[%clk 0:01:33]} 24. Rxd1 {[%clk 0:02:11]}  bxc5 {[%clk 0:01:33]} 25. Nc3 {[%clk 0:02:08]}  Nd7 {[%clk 0:01:23]} 26. Nb5 {[%clk 0:01:55]}  Rb7 {[%clk 0:01:23]} 27. a4 {[%clk 0:01:56]}  Nb8 {[%clk 0:01:16]} 28. Rd8+ {[%clk 0:01:53]}  Kh7 {[%clk 0:01:16]} 29. Rd6 {[%clk 0:01:42]}  Kg6 {[%clk 0:01:08]} 30. a5 {[%clk 0:01:42]}  Kf6 {[%clk 0:01:08]} 31. a6 {[%clk 0:01:40]} 1-0


[Site "https://www.chess.com"]